bitfinex-derivatives/quotes_ETHF0:USTF0_20240905
["timestamp","ask_amount","ask_price","bid_price","bid_amount"]
[1725503052659,0.00612295,2451.3,2451.2,4.0792]
[1725503053064,0.00612295,2451.3,2451.2,4.36476]
[1725503053257,0.00612295,2451.3,2451.2,14.24866]
[1725503055665,2.95e-06,2451.3,2451.2,14.24866]
[1725503059966,2.95e-06,2451.3,2451.2,10.16946]
[1725503060166,2.95e-06,2451.3,2451.2,14.24866]
[1725503061463,2.95e-06,2451.3,2451.2,13.53476]
[1725503061671,2.95e-06,2451.3,2451.2,7.53476]
[1725503062064,2.95e-06,2451.3,2451.2,3.45556]
[1725503064278,2.95e-06,2451.3,2451.2,7.53476]
[1725503066468,2.95e-06,2451.3,2451.2,8.24866]
[1725503066774,2.95e-06,2451.3,2451.2,14.24866]
[1725503067880,2.95e-06,2451.3,2451.2,7.53476]
[1725503069070,2.95e-06,2451.3,2451.2,3.45556]
[1725503072974,2.95e-06,2451.3,2451.2,4.16946]
[1725503074079,2.95e-06,2451.3,2451.2,2.31946]
[1725503074881,2.95e-06,2451.3,2451.2,13.11256]
[1725503079187,2.95e-06,2451.3,2451.2,13.25937436]
[1725503088899,2.95e-06,2451.3,2451.2,7.25937436]
[1725503091292,2.95e-06,2451.3,2451.2,10.46717436]
[1725503097105,0.095,2451.6,2451.5,1.71314]
[1725503097405,0.3814,2451.7,2451.6,0.99929]
[1725503098097,0.3814,2451.7,2451.6,0.28551]
[1725503098300,0.59525541,2451.7,2451.6,0.28551]
[1725503099197,4.67445541,2451.7,2451.6,0.28551]
[1725503099507,4.67444516,2451.7,2451.6,0.28551]
[1725503103305,0.59524516,2451.7,2451.6,0.28551]
[1725503104003,4.4606,2451.7,2451.6,0.28551]
[1725503104200,4.67444856,2451.7,2451.6,0.28551]
[1725503104514,4.95994856,2451.7,2451.5,1.32]
[1725503104694,0.58504856,2451.6,2451.5,1.60552]
[1725503105094,10.66424856,2451.6,2451.1,1.06981577]
[1725503105301,0.28556,2451.2,2451.0,0.28557]
[1725503105499,0.97044856,2451.1,2451.0,0.28557]
[1725503105799,1.34164856,2451.1,2451.0,0.28557]
[1725503106101,5.2078,2451.1,2451.0,1.60557]
[1725503106303,1.1278,2451.1,2451.0,1.60557]
[1725503109199,0.095,2451.6,2451.4,0.28552]
[1725503109401,3.45945371,2451.7,2451.4,0.28552]
[1725503109402,0.3736,2451.5,2451.4,1.60552]
[1725503122923,0.3865,2451.6,2451.5,0.28552]
[1725503123225,3.56235371,2451.8,2451.7,0.2855]
[1725503123518,0.2855,2451.7,2451.1,7.4048]
[1725503123733,0.2855,2451.7,2451.3,1.32]
[1725503123909,0.2855,2451.7,2451.2,0.3869]
[1725503123910,1.32,2451.7,2451.2,0.3869]
[1725503124112,0.28554,2451.4,2451.1,7.4048]
[1725503124331,1.41717998,2451.3,2451.1,4.197]
[1725503124523,1.2031,2451.3,2451.1,4.197]
[1725503124819,5.2831,2451.3,2451.1,4.48256]
[1725503125711,5.2831,2451.3,2451.2,0.28556]
[1725503125921,1.2031,2451.3,2451.2,0.28556]
[1725503126222,1.2031,2451.3,2451.2,1.60556]
[1725503126223,0.4057,2451.3,2451.2,1.60556]
[1725503127121,7.15795371,2451.6,2451.4,0.28553]
[1725503127320,0.61076418,2451.5,2451.4,0.28553]
[1725503128131,4.68996418,2451.5,2451.4,0.28553]
[1725503128325,4.4759,2451.5,2451.4,0.28553]
[1725503128523,4.6900414,2451.5,2451.4,0.28553]
[1725503128730,3.2078,2451.6,2451.5,0.28552]
[1725503128925,7.17285371,2451.8,2451.6,0.2855]
[1725503129129,7.17285371,2451.8,2451.6,1.6055]
[1725503129331,3.9989,2451.8,2451.6,1.6055]
[1725503129535,3.9989,2451.8,2451.7,0.2855]
[1725503129826,3.9989,2451.8,2451.7,0.6736]
[1725503129827,3.2078,2451.8,2451.7,0.6736]
[1725503130029,3.55497666,2451.9,2451.8,0.28549]
[1725503130233,3.76912503,2451.9,2451.8,0.28549]
[1725503131223,3.55497666,2451.9,2451.8,0.28549]
[1725503131531,3.76912126,2451.9,2451.8,0.28549]
[1725503132233,3.18007666,2451.9,2451.8,1.60549]
[1725503133332,3.18007666,2451.9,2451.8,0.28549]
[1725503133631,3.39422768,2451.9,2451.8,0.28549]
[1725503134017,3.39422768,2451.9,2451.7,1.99359]
[1725503134218,3.18007666,2451.9,2451.7,1.60549]
[1725503135224,3.18007666,2451.9,2451.8,0.28549]
[1725503135432,3.67970166,2451.9,2451.6,0.29162295]
[1725503135624,0.214155,2451.8,2451.7,0.2855]
[1725503136031,0.214155,2451.8,2451.6,0.29162295]
[1725503136240,0.3833,2451.7,2451.6,0.00612295]
[1725503136723,4.4625,2451.7,2451.6,0.00612295]
[1725503137229,0.3833,2451.7,2451.6,0.29163295]
[1725503137637,3.46555666,2451.9,2451.7,0.28549]
[1725503137826,3.84615666,2451.9,2451.7,0.28549]
[1725503138134,7.92455666,2451.9,2451.6,0.29162295]
[1725503138336,0.21404435,2451.8,2451.6,0.29162295]
[1725503138534,0.28549,2451.8,2451.6,0.29162295]
[1725503138743,3.56067666,2451.9,2451.6,0.29162295]
[1725503138744,3.84615666,2451.9,2451.6,0.29162295]
[1725503138938,0.21404518,2451.8,2451.6,0.29162295]
[1725503139136,3.84615666,2451.9,2451.6,0.29162295]
[1725503139340,0.21406305,2451.8,2451.6,0.29162295]
[1725503139638,3.84615666,2451.9,2451.6,0.29162295]
[1725503140043,0.21407494,2451.8,2451.6,0.29162295]
[1725503140531,3.84615666,2451.9,2451.6,0.29162295]
[1725503140727,0.21404964,2451.8,2451.7,0.2855]
[1725503141736,3.56067666,2451.9,2451.8,0.28549]
[1725503141940,3.77471482,2451.9,2451.8,0.28549]
[1725503142239,7.85311482,2451.9,2451.8,0.28549]
[1725503142637,4.67916111,2451.9,2451.8,0.28549]
[1725503143541,0.22016111,2451.9,2451.8,0.28549]
[1725503144038,0.22016111,2451.9,2451.8,0.69109]
[1725503145333,0.00612295,2451.9,2451.8,0.69109]
[1725503145636,0.00612295,2451.9,2451.8,2.01109]
[1725503147743,0.22027758,2451.9,2451.8,2.01109]
[1725503148939,0.00612295,2451.9,2451.8,2.01109]
[1725503150846,0.00612295,2451.9,2451.8,6.08949]
[1725503151052,0.095,2452.3,2452.2,0.28544]
[1725503151349,0.3958,2452.5,2452.4,0.28542]
[1725503152747,0.3958,2452.5,2452.2,0.3736]
[1725503152945,0.3958,2452.5,2452.3,0.28543]
[1725503153541,0.6812,2452.5,2452.3,0.28543]
[1725503153747,0.3958,2452.5,2452.3,0.28543]
[1725503154751,0.68121,2452.5,2452.2,1.97903]
[1725503156347,0.28542,2452.4,2452.2,1.32]
[1725503156547,0.3988,2452.3,2452.2,1.32]
[1725503159654,0.68423,2452.3,2452.2,1.32]
[1725503161353,0.3988,2452.3,2452.2,1.32]
[1725503162649,0.3958,2452.5,2452.2,1.32]
[1725503162845,0.68121,2452.5,2452.3,1.32]
[1725503163050,0.68121,2452.5,2452.3,1.7292]
[1725503163644,0.3958,2452.5,2452.3,2.01462]
[1725503164057,0.6812,2452.5,2452.3,2.01462]
[1725503164356,0.6812,2452.5,2452.3,1.7292]
[1725503166259,0.6812,2452.5,2452.3,2.01463]
[1725503166555,0.28543,2452.4,2452.2,1.32]
[1725503168753,0.28543,2452.3,2452.2,1.32]
[1725503168961,0.69363,2452.3,2452.0,1.99336]
[1725503169158,0.3773,2452.2,2452.0,2.37316]
[1725503169352,0.3773,2452.2,2451.8,4.5759]
[1725503169662,0.28547,2452.0,2451.8,5.517]
[1725503169957,0.4082,2451.9,2451.8,5.517]
[1725503172253,0.69367,2451.9,2451.8,5.517]
[1725503173451,0.4082,2451.9,2451.8,5.517]
[1725503173961,0.4082,2451.9,2451.8,1.32]
[1725503174466,0.4082,2451.9,2451.8,1.60549]
[1725503175957,0.4082,2451.9,2451.8,1.32]
[1725503176153,0.69367,2451.9,2451.8,1.32]
[1725503176361,0.69367,2451.9,2451.6,0.00612295]
[1725503176362,0.2855,2451.7,2451.6,0.00612295]
[1725503176560,3.70744814,2451.7,2451.6,0.00612295]
[1725503176868,10.96060185,2451.7,2451.6,0.00612295]
[1725503177066,11.34870185,2451.7,2451.6,0.00612295]
[1725503177263,13.38245185,2451.7,2451.6,0.00612295]
[1725503177763,12.06245185,2451.7,2451.6,0.00612295]
[1725503177968,11.34870185,2451.7,2451.6,0.00612295]
[1725503178367,7.6751,2451.7,2451.6,0.29163295]
[1725503178665,7.6751,2451.7,2451.6,0.00612295]
[1725503178666,0.3881,2451.7,2451.6,0.00612295]
[1725503179063,0.3881,2451.7,2451.6,0.40892295]
[1725503179766,0.3809,2451.8,2451.7,0.2855]
[1725503179961,0.66639,2451.8,2451.6,2.01442295]
[1725503181169,0.66639,2451.8,2451.6,1.72892295]
[1725503181771,0.66639,2451.8,2451.6,2.01443295]
[1725503183470,4.3647,2451.7,2451.6,0.00612295]
[1725503185567,4.0792,2451.7,2451.6,0.40342295]
[1725503185864,3.88498,2451.9,2451.7,0.2855]
[1725503186065,4.27398,2451.9,2451.8,0.3739]
[1725503186468,8.35238,2451.9,2451.8,0.3739]
[1725503189474,8.35238,2451.9,2451.6,2.40572295]
[1725503189675,0.28549,2451.8,2451.6,2.00892295]
[1725503190370,0.28549,2451.8,2451.6,0.68892295]
[1725503190973,0.2855,2451.7,2451.6,0.40342295]
[1725503191266,0.2855,2451.7,2451.6,0.00612295]
[1725503191267,1.2134279,2451.7,2451.6,0.00612295]
[1725503191471,14.46658161,2451.7,2451.6,0.00612295]
[1725503192376,11.29261987,2451.7,2451.6,0.00612295]
[1725503192576,14.46657358,2451.7,2451.6,0.00612295]
[1725503193671,14.46657358,2451.7,2451.0,4.48257]
[1725503193672,0.28554,2451.3,2451.0,4.48257]
[1725503193872,0.7658,2451.2,2451.1,0.395]
[1725503194268,1.05136,2451.2,2451.1,0.395]
[1725503194975,0.7658,2451.2,2451.1,0.395]
[1725503195174,1.05136,2451.2,2451.1,0.395]
[1725503196374,0.28558,2451.0,2450.9,1.32612295]
[1725503196579,0.28558,2451.0,2450.9,0.00612295]
[1725503196780,8.89338,2451.0,2450.9,0.00612295]
[1725503196982,0.28562,2450.7,2450.3,6.57595]
[1725503197280,3.49342,2450.7,2450.4,0.3715]
[1725503197679,0.3755,2450.6,2450.4,0.65715]
[1725503198182,0.3918,2450.7,2450.5,0.28564]
[1725503198680,3.5996,2450.7,2450.4,1.97714]
[1725503198974,3.5996,2450.7,2450.5,0.28564]
[1725503199880,0.3755,2450.8,2450.5,0.28564]
[1725503201175,3.2078,2450.7,2450.4,0.65714]
[1725503201878,3.595,2450.7,2450.4,0.65714]
[1725503202077,3.88062,2450.7,2450.4,0.65714]
[1725503202387,0.3755,2450.8,2450.5,0.28563]
[1725503202680,0.6611,2450.8,2450.5,0.28563]
[1725503202882,0.3755,2450.8,2450.5,0.28563]
[1725503203087,3.2078,2450.6,2450.5,0.28563]
[1725503203288,0.3755,2450.8,2450.5,0.28564]
[1725503204882,0.6611,2450.8,2450.5,0.28564]
[1725503205383,3.2078,2450.6,2450.5,0.28564]
[1725503205984,3.6159,2450.9,2450.4,0.3715]
[1725503206599,3.6159,2450.9,2450.7,0.28561]
[1725503206801,3.6159,2450.9,2450.8,0.4074]
[1725503207294,7.6959,2450.9,2450.8,0.4074]
[1725503208195,3.2078,2450.9,2450.8,0.693]
[1725503208403,0.28557,2451.1,2450.8,1.4765]
[1725503209297,0.69516,2451.2,2450.9,0.28559]
[1725503209599,3.2078,2451.0,2450.9,0.28559]
[1725503210097,3.2078,2451.0,2450.8,1.47649]
[1725503210403,3.2078,2451.0,2450.9,0.28559]
[1725503211506,0.69516,2451.2,2450.9,0.28559]
[1725503212100,0.69516,2451.2,2451.0,0.28557]
[1725503212101,0.4096,2451.2,2451.0,0.28557]
[1725503213005,0.4096,2451.2,2450.9,0.28558]
[1725503213403,0.69516,2451.2,2450.9,0.28558]
[1725503213603,0.69516,2451.2,2450.8,1.1909]
[1725503213803,0.69516,2451.2,2450.9,0.28559]
[1725503214406,0.28557,2451.1,2450.8,1.47649]
[1725503215399,3.2078,2451.1,2450.9,0.28559]
[1725503215595,3.49337,2451.1,2450.8,1.4765]
[1725503215813,0.28558,2451.0,2450.8,1.1909]
[1725503216896,3.49337,2451.1,2450.8,1.4765]
[1725503217612,3.2078,2451.1,2450.9,0.28558]
[1725503218110,3.49337,2451.1,2450.8,1.47649]
[1725503218801,3.2078,2451.1,2450.8,1.1909]
[1725503219003,0.4096,2451.2,2451.0,0.28558]
[1725503220102,0.69516,2451.2,2451.0,0.28558]
[1725503220405,3.2078,2451.1,2450.9,0.28558]
[1725503220997,3.49337,2451.1,2450.9,0.28558]
[1725503221910,0.28559,2450.9,2450.8,0.4074]
[1725503222808,0.28559,2450.9,2450.6,1.99282]
[1725503223005,0.3812,2450.8,2450.7,0.3736]
[1725503223407,0.3812,2450.8,2450.5,0.3954]
[1725503223408,3.8746,2450.8,2450.5,0.28563]
[1725503223606,0.767,2450.7,2450.5,0.28563]
[1725503225007,0.767,2450.7,2450.6,0.28563]
[1725503225307,0.767,2450.7,2450.4,1.6936]
[1725503225510,0.767,2450.7,2450.5,0.28563]
[1725503226511,1.05262,2450.7,2450.4,0.3736]
[1725503226716,0.28563,2450.6,2450.4,0.3736]
[1725503227710,1.05262,2450.7,2450.4,0.3736]
[1725503228518,0.28563,2450.6,2450.4,0.3736]
[1725503230121,1.05262,2450.7,2450.4,0.3736]
[1725503230508,0.28563,2450.6,2450.4,0.3736]
[1725503230819,1.05262,2450.7,2450.4,0.3736]
[1725503231113,0.28563,2450.6,2450.4,0.3736]
[1725503231313,1.05262,2450.7,2450.4,0.3736]
[1725503231718,1.05262,2450.7,2450.3,0.47519938]
[1725503232412,1.05262,2450.7,2450.4,0.28565]
[1725503233118,0.767,2450.7,2450.5,0.28563]
[1725503233312,0.767,2450.7,2450.3,1.51566233]
[1725503233515,1.05262,2450.7,2450.4,0.28565]
[1725503234414,0.28563,2450.6,2450.3,1.80131233]
[1725503234722,1.05262,2450.7,2450.4,0.28565]
[1725503236522,0.28563,2450.6,2450.3,0.48131233]
[1725503236721,1.05262,2450.7,2450.4,0.28565]
[1725503237112,3.2078,2450.6,2450.4,0.28565]
[1725503237724,0.3808,2450.5,2450.4,0.28565]
[1725503241219,3.2078,2450.6,2450.5,0.28564]
[1725503241417,3.2078,2450.8,2450.5,1.52771761]
[1725503241616,3.58185371,2450.9,2450.7,0.28561]
[1725503241816,3.2078,2450.8,2450.7,0.28561]
[1725503242014,3.42214352,2450.8,2450.7,0.67701]
[1725503243020,0.4079,2450.9,2450.8,0.2856]
[1725503243229,0.21435324,2450.9,2450.8,0.2856]
[1725503244219,3.17395371,2451.0,2450.9,0.28559]
[1725503244413,3.3883092,2451.0,2450.9,0.28559]
[1725503244915,3.5889,2451.1,2451.0,0.28558]
[1725503245113,3.5889,2451.1,2451.0,0.65998]
[1725503245314,3.80324267,2451.1,2451.0,1.05428]
[1725503245516,3.5889,2451.1,2451.0,1.05428]
[1725503246025,3.5889,2451.1,2451.0,0.7687]
[1725503246026,3.80324918,2451.1,2451.0,0.7687]
[1725503246317,3.5889,2451.1,2451.0,1.05428]
[1725503246514,3.2078,2451.1,2451.0,6.45428]
[1725503247219,3.2078,2451.3,2451.1,0.28556]
[1725503247824,3.2078,2451.3,2451.2,0.28556]
[1725503248531,0.40322295,2451.4,2451.3,0.28554]
[1725503248915,0.40322295,2451.4,2451.2,0.28555]
[1725503249123,0.6175281,2451.4,2451.2,0.28555]
[1725503249325,0.40322295,2451.4,2451.2,0.28555]
[1725503250027,0.40322295,2451.4,2451.3,0.28554]
[1725503251231,0.00612295,2451.4,2451.3,0.28554]
[1725503264536,0.00612295,2451.4,2451.3,0.67714]
[1725503273755,0.00612295,2451.4,2451.0,3.2078]
[1725503273942,3.2078,2451.3,2450.9,4.197]
[1725503274142,0.28556,2451.2,2450.9,4.48258]
[1725503274458,0.7833,2451.1,2450.9,4.48258]
[1725503274955,0.7833,2451.1,2450.9,4.197]
[1725503275154,3.49338,2451.0,2450.7,0.28561]
[1725503275343,0.2856,2450.9,2450.6,0.28562]
[1725503275749,0.3966,2450.8,2450.6,0.28562]
[1725503276146,0.7833,2451.1,2450.7,1.32]
[1725503276451,3.49946295,2451.4,2450.9,1.32]
[1725503276651,1.183,2451.3,2450.9,1.32]
[1725503276843,1.46855,2451.3,2451.0,0.68517]
[1725503278052,1.46854,2451.3,2451.0,0.68517]
[1725503278553,1.183,2451.3,2451.1,0.28557]
[1725503279444,1.183,2451.3,2451.0,0.3996]
[1725503279445,1.183,2451.3,2451.2,0.28556]
[1725503280551,1.183,2451.3,2451.1,0.28556]
[1725503282659,3.2078,2451.2,2451.1,0.28556]
[1725503286655,0.00612295,2451.4,2451.3,0.28554]
[1725503286957,0.00612295,2451.4,2451.3,1.60554]
[1725503287260,0.00612295,2451.4,2451.3,5.68474]
[1725503287462,0.00612295,2451.4,2451.3,6.05834]
[1725503290155,0.00612295,2451.4,2451.3,1.97914]
[1725503298967,0.00612295,2451.4,2451.3,0.28554]
[1725503299171,0.00612295,2451.4,2451.0,0.71393]
[1725503299172,0.00612295,2451.4,2451.0,1.32]
[1725503299464,0.00612295,2451.4,2451.2,0.28555]
[1725503299970,3.21392295,2451.4,2451.1,0.28556]
[1725503300168,3.21392295,2451.4,2451.0,0.28557]
[1725503300169,1.04595,2451.3,2451.0,0.28557]
[1725503300368,1.04595,2451.3,2450.9,4.197]
[1725503300570,0.3966,2451.2,2451.1,0.28557]
[1725503310364,0.00612295,2451.4,2451.1,5.68557]
[1725503310565,0.00612295,2451.4,2451.3,0.28554]
[1725503311675,0.00612295,2451.4,2451.3,3.49334]
[1725503312667,0.00612295,2451.4,2451.3,4.20721]
[1725503313168,0.7754,2451.8,2451.7,0.2855]
[1725503314676,0.41552295,2452.0,2451.9,0.28547]
[1725503314877,1.22572295,2452.0,2451.9,0.28547]
[1725503316679,0.41552295,2452.0,2451.9,0.28547]
[1725503320177,0.00612295,2452.0,2451.9,4.36387]
[1725503321382,0.00612295,2452.0,2451.9,4.73757]
[1725503324984,0.00612295,2452.0,2451.9,0.28547]
[1725503326886,0.00612295,2452.0,2451.7,1.32612295]
[1725503327082,0.00612295,2452.0,2451.7,0.00612295]
[1725503327283,0.29158295,2452.0,2451.8,0.28548]
[1725503327488,0.7948,2451.9,2451.8,0.28548]
[1725503327693,1.1748,2451.9,2451.8,0.28548]
[1725503329290,0.00612295,2452.0,2451.8,0.28548]
[1725503329291,0.00612295,2452.0,2451.9,0.28547]
[1725503329591,0.00612295,2452.0,2451.9,1.98467]
[1725503332098,0.00612295,2452.0,2451.9,6.77676]
[1725503333189,0.389,2452.5,2452.4,0.28542]
[1725503334196,3.2078,2452.6,2452.5,0.2854]
[1725503338610,0.40522295,2452.7,2452.6,0.28539]
[1725503342612,0.40522295,2452.7,2452.6,5.68299]
[1725503342613,0.00612295,2452.7,2452.6,5.68299]
[1725503342805,4.111,2453.4,2452.6,5.68299]
[1725503342806,0.3724,2453.0,2452.9,0.28536]
[1725503343006,0.3724,2453.0,2452.9,4.81316]
[1725503344511,0.3724,2453.0,2452.9,1.60536]
[1725503348513,0.3724,2453.0,2452.9,0.28536]
[1725503348709,0.3724,2453.0,2452.8,0.28536]
[1725503348909,0.4002,2452.9,2452.8,0.28536]
[1725503352516,0.4002,2452.9,2452.7,0.28537]
[1725503352716,0.4002,2452.9,2452.6,0.28539]
[1725503352717,0.3968,2452.8,2452.6,0.28539]
[1725503353220,0.3953,2452.7,2452.6,0.28539]
[1725503353818,0.3953,2452.7,2452.5,7.4048]
[1725503354209,0.3953,2452.7,2452.5,7.6902]
[1725503355315,0.3953,2452.7,2452.5,3.4932]
[1725503355515,0.3953,2452.7,2452.5,3.2078]
[1725503355720,0.3953,2452.7,2452.5,3.4932]
[1725503356112,0.68068,2452.7,2452.5,3.2078]
[1725503356412,0.68069,2452.7,2452.3,1.60542]
[1725503357614,0.28539,2452.6,2452.3,1.32]
[1725503357817,0.371,2452.5,2452.2,0.3753]
[1725503358019,0.3948,2452.4,2452.1,0.28545]
[1725503358210,0.3948,2452.4,2452.0,1.32]
[1725503358211,1.05272,2452.4,2452.0,1.60546]
[1725503358415,0.7673,2452.4,2452.1,0.28545]
[1725503359518,3.2078,2452.2,2452.1,0.28545]
[1725503359713,0.7673,2452.4,2452.1,0.28545]
[1725503359917,3.2078,2452.3,2452.1,0.28545]
[1725503360325,0.7673,2452.4,2452.2,1.60544]
[1725503360815,0.7673,2452.4,2451.7,7.41092295]
[1725503361016,1.05272,2452.4,2452.0,1.60546]
[1725503361214,3.2078,2452.3,2452.0,1.60546]
[1725503361415,1.05272,2452.4,2452.1,0.28545]
[1725503362220,0.7673,2452.4,2452.1,0.28545]
[1725503363116,0.7673,2452.4,2452.2,0.28544]
[1725503364528,3.2078,2452.3,2452.2,0.28544]
[1725503366322,7.2854,2452.3,2452.2,0.28544]
[1725503366526,7.57083,2452.3,2452.0,0.28546]
[1725503366728,3.49323,2452.3,2452.0,0.28546]
[1725503367322,1.32,2452.1,2451.8,0.28547]
[1725503367527,1.1905,2452.0,2451.9,0.28547]
[1725503367725,1.1905,2452.0,2451.8,0.28548]
[1725503367922,1.1905,2452.0,2451.7,4.60682295]
[1725503367923,1.1905,2452.0,2451.9,0.28547]
[1725503370028,0.7923,2452.0,2451.9,0.28547]
[1725503370426,0.7923,2452.0,2451.9,0.66857]
[1725503376336,4.0001,2452.0,2451.9,0.66857]
[1725503376636,0.7923,2452.0,2451.9,0.28547]
[1725503377226,0.384,2452.0,2451.9,0.28547]
[1725503377432,0.3755,2452.2,2452.1,0.28545]
[1725503377433,0.7603,2452.2,2452.1,0.28545]
[1725503377631,1.1448,2452.2,2452.1,0.28545]
[1725503381039,1.1448,2452.2,2452.1,0.66785]
[1725503382340,3.2078,2452.6,2452.1,1.7024]
[1725503382534,0.3733,2452.4,2452.3,0.28542]
[1725503383139,4.4509,2452.4,2452.3,0.28542]
[1725503383842,0.3733,2452.4,2452.3,0.28542]
[1725503386743,0.3733,2452.4,2452.2,0.28543]
[1725503392544,0.3733,2452.4,2452.3,0.28543]
[1725503395548,3.4932,2452.6,2452.1,0.3824]
[1725503395741,3.54787002,2452.7,2452.3,1.32]
[1725503395947,0.3848,2452.7,2452.6,0.28539]
[1725503399847,0.3848,2452.7,2452.4,0.28541]
[1725503400049,0.7481,2452.6,2452.4,0.28541]
[1725503400352,0.7481,2452.6,2452.5,0.2854]
[1725503401845,0.7481,2452.6,2452.2,2.1166]
[1725503401846,0.3848,2452.7,2452.6,0.28539]
[1725503402448,0.2854,2452.6,2452.3,0.28542]
[1725503402649,0.2854,2452.6,2452.4,0.28541]
[1725503402950,0.67019,2452.7,2452.5,0.2854]
[1725503403154,0.67019,2452.7,2452.3,0.3935]
[1725503403155,0.67019,2452.7,2452.4,0.28541]
[1725503403343,0.67019,2452.7,2452.5,0.2854]
[1725503404150,3.49319,2452.6,2452.4,0.28541]
[1725503404455,0.28539,2452.6,2452.4,0.28541]
[1725503404950,3.49319,2452.6,2452.3,1.60542]
[1725503405549,3.49319,2452.6,2452.4,0.28541]
[1725503406253,0.28541,2452.5,2452.3,0.28542]
[1725503406454,0.7927,2452.4,2452.3,0.28542]
[1725503406653,1.1684,2452.4,2452.3,0.28542]
[1725503407952,0.28544,2452.2,2452.0,4.48246]
[1725503408252,0.3757,2452.1,2452.0,0.28546]
[1725503409051,0.3757,2452.1,2451.9,1.60547]
[1725503410361,4.0167,2452.0,2451.7,0.00612295]
[1725503410660,0.28548,2451.9,2451.7,0.00612295]
[1725503411854,4.30217,2452.0,2451.7,0.00612295]
[1725503412059,4.30217,2452.0,2451.9,0.28547]
[1725503412060,0.8089,2452.0,2451.9,0.28547]
[1725503412255,0.3757,2452.1,2451.9,0.28547]
[1725503412460,1.1354,2452.1,2451.9,0.28547]
[1725503414554,3.2078,2452.3,2452.1,0.28544]
[1725503414760,3.2078,2452.3,2452.1,0.28545]
[1725503415152,3.53907002,2452.4,2452.1,0.28545]
[1725503415352,3.53907002,2452.4,2452.2,0.28544]
[1725503415557,0.376,2452.4,2452.2,0.28544]
[1725503415759,0.66142,2452.4,2452.1,0.28544]
[1725503415955,5.14449002,2452.4,2452.1,0.28544]
[1725503416758,1.98142,2452.4,2452.1,0.28544]
[1725503417159,5.14449002,2452.4,2452.1,0.28544]
[1725503417950,5.14449002,2452.4,2451.8,2.4859]
[1725503417951,0.28545,2452.2,2451.8,2.4859]
[1725503418153,0.806,2452.1,2451.9,0.28547]
[1725503418558,0.3808,2452.0,2451.9,0.28547]
[1725503419853,0.3808,2452.0,2451.8,1.45138]
[1725503420269,0.3808,2452.0,2451.9,0.28547]
[1725503422262,3.2078,2452.3,2452.1,0.28544]
[1725503422463,0.3901,2452.2,2452.1,0.28544]
[1725503428156,3.2078,2452.3,2452.2,0.28544]
[1725503428468,3.55937002,2452.5,2452.3,0.28542]
[1725503430757,0.28547,2452.0,2451.7,4.20312295]
[1725503431068,1.47088,2451.9,2451.7,4.20312295]
[1725503431662,1.47088,2451.9,2451.7,4.48861295]
[1725503431861,1.1854,2451.9,2451.7,4.48861295]
[1725503432567,1.1854,2451.9,2451.7,0.29161295]
[1725503432764,4.3932,2451.9,2451.7,0.29161295]
[1725503434168,4.67867,2451.9,2451.7,0.29161295]
[1725503434372,4.3932,2451.9,2451.7,0.29161295]
[1725503434569,4.67867,2451.9,2451.7,0.29161295]
[1725503434872,4.67867,2451.9,2451.7,0.00612295]
[1725503436178,4.67867,2451.9,2451.0,3.2078]
[1725503436179,5.68389,2451.8,2451.0,3.2078]
[1725503436365,1.32,2451.2,2450.8,4.197]
[1725503436569,1.32,2451.0,2450.7,0.28561]
[1725503437673,4.39262295,2451.1,2450.8,0.2856]
[1725503441169,1.18482295,2451.1,2450.8,0.2856]
[1725503441379,1.47039295,2451.1,2450.7,0.28561]
[1725503442479,1.47039295,2451.1,2450.6,1.05274295]
[1725503442480,0.28558,2451.0,2450.6,1.05274295]
[1725503442679,3.2078,2450.9,2450.6,1.05274295]
[1725503443274,3.2078,2450.9,2450.7,0.28561]
[1725503445276,3.2078,2451.0,2450.7,3.17]
[1725503445573,1.18482295,2451.1,2450.7,3.17]
[1725503445574,1.18482295,2451.1,2450.9,0.28559]
[1725503446671,3.2078,2451.0,2450.9,0.28559]
[1725503448784,1.18482295,2451.1,2451.0,0.28558]
[1725503449576,1.18482295,2451.1,2450.9,0.28558]
[1725503449777,1.18482295,2451.1,2450.8,0.28559]
[1725503450779,1.18482295,2451.1,2450.9,0.28559]
[1725503451383,3.49338,2451.0,2450.7,0.28561]
[1725503453082,0.28558,2451.0,2450.7,0.28561]
[1725503453280,3.2078,2450.9,2450.7,0.28561]
[1725503453568,1.47039295,2451.1,2450.8,0.2856]
[1725503454483,1.18482295,2451.1,2450.9,0.28559]
[1725503454785,1.18482295,2451.1,2451.0,0.28558]
[1725503455781,1.18482295,2451.1,2450.9,0.28558]
[1725503459581,0.00612295,2451.1,2451.0,0.28558]
[1725503459980,0.38832295,2451.1,2451.0,0.28558]
[1725503462689,0.00612295,2451.1,2451.0,0.28558]
[1725503465182,0.00612295,2451.1,2451.0,1.60558]
[1725503465385,0.3923,2451.5,2451.4,0.28553]
[1725503465982,0.787,2451.8,2451.6,0.2855]
[1725503466183,0.3923,2451.7,2451.6,0.2855]
[1725503468683,0.4122,2451.8,2451.6,0.2855]
[1725503469993,0.2855,2451.7,2451.4,0.28553]
[1725503470196,0.4027,2451.6,2451.4,0.28553]
[1725503470583,0.3976,2451.5,2451.4,0.28553]
[1725503470787,0.3976,2451.5,2451.3,0.4098]
[1725503470985,0.3976,2451.5,2451.4,0.28553]
[1725503471894,2.01769,2451.8,2451.5,0.28551]
[1725503472098,3.2078,2451.6,2451.5,0.28551]
[1725503472295,0.6831,2451.7,2451.5,0.28551]
[1725503473292,0.402,2451.6,2451.5,0.28551]
[1725503473497,0.402,2451.6,2451.4,0.3829]
[1725503473498,0.402,2451.6,2451.4,0.66843]
[1725503475087,0.68751,2451.6,2451.4,0.66843]
[1725503475286,0.402,2451.6,2451.5,0.28552]